bitfinex-derivatives/quotes_ETHF0:USTF0_20260207
["timestamp","ask_amount","ask_price","bid_price","bid_amount"]
[1770437498713,11.86770526,2106.2,2104.2,0.23777]
[1770437498920,11.87310772,2106.2,2104.2,0.0054834]
[1770437499118,11.87310772,2106.2,2104.6,0.23773]
[1770437499317,0.00540246,2106.2,2104.2,0.0054834]
[1770437499515,10.17306475,2109.6,2105.3,3.7951402]
[1770437499719,11.86770526,2109.2,2106.5,3.7951402]
[1770437499922,11.86770526,2109.2,2106.9,0.23747]
[1770437500121,11.86770526,2108.7,2105.9,0.23758]
[1770437500516,11.86770526,2108.4,2105.9,0.00579049]
[1770437500722,11.86770526,2108.1,2106.0,0.10987417]
[1770437501023,11.81276817,2108.5,2106.5,0.10987417]
[1770437501215,12.05005817,2108.5,2106.5,0.10987417]
[1770437501623,11.81276817,2108.5,2106.5,0.10987417]
[1770437501818,0.00426817,2108.7,2106.0,0.10987417]
[1770437501819,11.81276817,2108.2,2106.0,0.10987417]
[1770437502019,15.84525837,2108.0,2105.9,0.00579049]
[1770437502218,11.81276817,2107.9,2105.9,0.00579049]
[1770437502418,11.81276817,2107.9,2105.9,0.11566466]
[1770437502720,11.81276817,2107.8,2105.9,0.00579049]
[1770437503119,12.04286603,2107.2,2104.7,0.12455846]
[1770437503315,11.80542603,2107.2,2105.1,0.12455846]
[1770437503919,11.80542603,2107.2,2105.2,0.12455846]
[1770437504321,11.80956094,2107.2,2105.2,0.13055441]
[1770437504721,11.80956094,2107.2,2105.6,0.23761]
[1770437504922,11.80956094,2107.2,2105.7,0.23761]
[1770437505213,11.80956094,2107.2,2105.8,0.2376]
[1770437505420,11.80956094,2107.2,2105.2,0.00599595]
[1770437505624,11.80956094,2107.2,2105.0,4.0328202]
[1770437505625,11.86770526,2106.1,2104.1,0.23778]
[1770437505920,11.86770526,2106.1,2103.8,0.23782]
[1770437506519,11.86770526,2106.1,2103.8,0.24369536]
[1770437506720,11.86770526,2106.1,2103.8,0.00587536]
[1770437506929,11.86770526,2105.7,2103.8,0.00587536]
[1770437507222,11.87377471,2105.7,2103.8,0.00587536]
[1770437507619,11.86770526,2105.5,2103.8,0.00587536]
[1770437508521,11.86770526,2105.3,2103.8,0.00587536]
[1770437508718,3.4425,2105.4,2103.8,0.00587536]
[1770437508915,15.31020526,2105.4,2103.9,0.23781]
[1770437509120,3.4425,2105.4,2104.4,0.23775]
[1770437509826,15.31020526,2105.4,2103.8,0.00587536]
[1770437510021,11.86770526,2105.3,2103.8,0.00587536]
[1770437511327,15.90053546,2105.0,2102.9,0.23792]
[1770437511521,3.4425,2105.4,2103.1,0.2379]
[1770437511522,11.86770526,2104.9,2103.1,0.2379]
[1770437512222,11.86770526,2104.9,2103.1,0.24171613]
[1770437512525,12.10540526,2104.9,2103.1,0.00381613]
[1770437512924,11.86770526,2104.5,2103.1,0.00381613]
[1770437514431,11.86770526,2104.5,2103.4,0.23786]
[1770437514723,11.86770526,2104.5,2103.1,0.00381613]
[1770437516122,11.86770526,2105.3,2103.6,0.23784]
[1770437516723,12.10536526,2105.3,2103.6,0.23784]
[1770437517316,11.86770526,2105.1,2103.6,0.23784]
[1770437517518,11.86770526,2104.9,2103.1,0.00381613]
[1770437517719,12.10540526,2104.9,2103.1,0.00381613]
[1770437518122,12.10540526,2104.9,2103.3,0.23788]
[1770437518519,11.86770526,2104.7,2103.1,0.00381613]
[1770437518724,11.86770526,2104.5,2102.8,0.23793]
[1770437518926,11.86770526,2104.5,2102.9,0.23791]
[1770437519820,11.86770526,2104.5,2102.9,0.24397245]
[1770437520821,11.86770526,2104.5,2103.3,0.23788]
[1770437521522,11.86770526,2104.5,2102.9,0.00606245]
[1770437522733,11.86770526,2105.3,2103.6,0.23784]
[1770437522921,11.86770526,2105.3,2102.9,2.70816221]
[1770437522922,11.86770526,2105.1,2102.9,0.00606245]
[1770437523124,11.86770526,2105.1,2103.8,0.23782]
[1770437523930,11.86770526,2105.1,2103.2,0.23789]
[1770437524131,12.10542526,2104.7,2102.9,0.00606245]
[1770437524324,11.86770526,2104.7,2103.4,0.23787]
[1770437524830,11.86770526,2104.7,2102.9,0.00606245]
[1770437525035,11.86770526,2104.7,2103.1,2.73690906]
[1770437525331,11.86770526,2104.7,2103.8,0.23781]
[1770437525928,3.4425,2105.4,2103.2,2.73690906]
[1770437526133,11.84524109,2105.3,2104.1,0.23779]
[1770437527026,11.84524109,2105.3,2103.6,2.73690906]
[1770437527228,11.84524109,2105.3,2103.7,0.23783]
[1770437527426,12.08290109,2105.3,2103.7,0.23783]
[1770437527627,3.4425,2105.4,2104.0,2.73690906]
[1770437527823,3.34036004,2105.4,2104.9,0.2377]
[1770437528025,3.34036004,2105.4,2104.9,0.24379016]
[1770437528232,9.45e-06,2105.7,2104.9,0.00609016]
[1770437528536,11.83947639,2106.6,2104.9,2.74299922]
[1770437528834,11.83947639,2106.6,2105.5,0.23762]
[1770437529035,14.66566588,2106.5,2105.5,0.23762]
[1770437529225,11.83947639,2106.5,2105.5,0.23762]
[1770437529434,2.82618949,2106.5,2105.6,0.23762]
[1770437529631,2.82997419,2106.5,2105.6,0.23762]
[1770437530037,2.82997419,2106.5,2105.7,0.2376]
[1770437530336,11.83947639,2108.1,2106.5,0.23751]
[1770437530540,10.17306475,2109.4,2106.5,0.23751]
[1770437530541,11.83947639,2107.4,2106.5,0.23751]
[1770437530838,11.83947639,2108.3,2106.6,0.2375]
[1770437531137,13.97454588,2108.3,2106.8,0.23748]
[1770437531437,13.97866293,2108.3,2106.8,0.03505524]
[1770437532235,13.97866293,2108.3,2106.8,0.00405752]
[1770437532631,11.82397752,2108.1,2106.2,2.73690906]
[1770437532832,0.0323,2108.2,2105.7,0.26860772]
[1770437532833,11.48661953,2107.7,2105.7,0.26860772]
[1770437533236,2.13506949,2107.6,2106.5,0.70571371]
[1770437533428,13.62168902,2107.6,2106.1,0.70571371]
[1770437533737,13.62168902,2107.6,2106.5,0.23751]
[1770437533939,13.62168902,2107.6,2106.5,0.94322371]
[1770437534432,11.48661953,2108.1,2106.7,0.70571371]
[1770437534732,11.48661953,2107.8,2106.7,0.70571371]
[1770437534939,11.48661953,2107.8,2106.6,0.2375]
[1770437535137,13.6952929,2107.7,2106.6,0.2375]
[1770437535329,11.56022341,2107.7,2106.6,0.2375]
[1770437535536,11.56022341,2107.5,2106.1,0.56363519]
[1770437536238,11.56022341,2107.3,2106.1,0.56363519]
[1770437536438,11.56022341,2108.0,2106.1,0.56363519]
[1770437536943,11.63160839,2107.8,2106.4,0.55850595]
[1770437537136,11.63160839,2107.8,2106.1,0.42086522]
[1770437537436,11.63160839,2107.6,2106.1,0.00512924]
[1770437538229,11.63160839,2107.4,2106.1,0.00512924]
[1770437538736,11.63160839,2107.2,2106.1,0.00512924]
[1770437539136,11.62042375,2107.0,2106.1,0.00512924]
[1770437539641,13.75549324,2106.9,2106.1,0.00512924]
[1770437539936,11.62042375,2106.9,2106.1,0.00512924]
[1770437540130,13.75549324,2106.8,2106.1,0.00512924]
[1770437540330,11.62465311,2106.8,2106.1,0.00512924]
[1770437540640,0.00422936,2106.8,2106.3,0.67563528]
[1770437540832,13.23711443,2106.7,2105.6,0.50206289]
[1770437541032,13.23711443,2106.7,2105.7,0.2376]
[1770437541229,11.58844494,2106.7,2105.8,0.23759]
[1770437541432,0.00422936,2106.8,2105.9,0.50206289]
[1770437541633,13.24134379,2106.8,2106.1,0.02767669]
[1770437542036,13.24134379,2106.8,2106.1,0.03106906]
[1770437542237,13.24134379,2106.8,2106.1,0.00339237]
[1770437542734,0.00422936,2106.8,2106.2,0.23755]
[1770437542933,0.00422936,2106.8,2106.3,0.23753]
[1770437543233,1.65289885,2106.8,2106.1,0.00339237]
[1770437543739,13.34077349,2106.8,2106.1,0.00339237]
[1770437544139,13.34077349,2106.8,2105.8,0.23759]
[1770437544341,13.34077349,2106.8,2105.8,0.30320349]
[1770437544535,0.00422936,2106.8,2106.3,0.54074349]
[1770437544736,11.68787464,2107.1,2106.3,0.54074349]
[1770437544931,1.64866949,2107.0,2106.3,0.30320349]
[1770437545136,11.76950131,2107.4,2106.5,0.23751]
[1770437545337,11.76950131,2107.2,2106.5,0.23751]
[1770437545737,13.4181708,2107.1,2106.5,0.00556653]
[1770437545935,13.4181708,2107.1,2106.0,0.37752016]
[1770437546135,13.4181708,2107.1,2106.0,0.23757]
[1770437547039,0.00503948,2107.2,2104.8,0.23771]
[1770437547040,11.75686437,2106.5,2104.8,0.23771]
[1770437547241,11.75686437,2106.2,2104.3,0.16522403]
[1770437547440,11.75686437,2106.2,2104.4,0.23775]
[1770437547939,11.75686437,2106.0,2104.9,0.2377]
[1770437548436,11.75686437,2105.8,2104.4,0.00582522]
[1770437548642,11.75686437,2105.8,2104.4,0.24357522]
[1770437548840,11.72183483,2105.6,2104.4,0.00582522]
[1770437549139,11.7268254,2105.6,2104.0,0.23528312]
[1770437549331,11.72183483,2105.4,2104.0,0.23528312]
[1770437549732,1.64866949,2105.3,2103.9,0.23781]
[1770437549932,1.64866949,2105.3,2104.1,0.23779]
[1770437549933,11.72183483,2105.2,2104.1,0.23779]
[1770437550438,11.72183483,2105.0,2104.1,0.23779]
[1770437551038,1.64866949,2104.9,2104.1,0.23779]
[1770437551239,13.48814588,2104.9,2104.1,0.23779]
[1770437551639,13.48814588,2104.9,2103.9,0.0057304]
[1770437551944,11.83947639,2104.7,2103.9,0.0057304]
[1770437553239,13.48814588,2104.6,2103.9,0.2435304]
[1770437553439,11.83947639,2104.6,2103.9,0.2435304]
[1770437553939,11.83947639,2104.4,2103.4,0.23787]
[1770437554337,1.64866949,2104.3,2103.4,0.23787]
[1770437554543,11.83947639,2104.2,2103.4,0.23787]
[1770437554940,13.48814588,2104.1,2103.4,0.24139806]
[1770437555245,11.84286618,2104.1,2103.4,0.24139806]
[1770437555543,11.83947639,2103.9,2102.8,2.73690906]
[1770437555745,11.83947639,2103.9,2102.6,2.73690906]
[1770437555945,11.85413842,2103.7,2103.0,0.23791]
[1770437556341,11.85413842,2103.5,2103.0,0.00459425]
[1770437556540,11.85413842,2103.5,2102.6,0.23796]
[1770437556740,13.50280791,2103.4,2102.8,0.02767669]
[1770437557048,11.85413842,2103.4,2102.6,0.23796]
[1770437557347,0.00338979,2104.1,2102.0,2.73690906]
[1770437557348,11.85413842,2103.2,2102.0,2.73690906]
[1770437557640,11.85413842,2103.2,2102.6,0.23796]
[1770437557845,13.50280791,2103.1,2102.0,0.00399493]
[1770437558044,11.85413842,2103.4,2102.0,2.74090399]
[1770437558346,11.85413842,2103.4,2102.6,0.23796]
[1770437558740,13.50280791,2103.3,2102.8,0.23793]
[1770437558940,11.85413842,2103.6,2103.0,0.23791]
[1770437559446,11.85413842,2103.4,2103.0,0.23791]
[1770437559644,11.85413842,2103.7,2103.0,0.23791]
[1770437559841,11.85413842,2103.5,2102.5,0.23797]
[1770437560242,1.64866949,2103.4,2102.6,0.23796]
[1770437560540,13.50280791,2103.4,2102.6,0.23796]
[1770437561145,13.50280791,2103.4,2102.0,0.00399493]
[1770437561749,11.85413842,2105.6,2102.7,0.23794]
[1770437561947,11.85413842,2105.6,2104.0,0.2378]
[1770437562144,8.02213842,2105.6,2104.0,0.2378]
[1770437562740,8.02637215,2105.6,2104.0,0.24225557]
[1770437563041,8.02637215,2105.6,2104.2,3.64467859]
[1770437563243,10.82161256,2108.1,2105.2,3.64467859]
[1770437563444,1.09114,2109.4,2105.9,10.82291016]
[1770437563445,10.82161256,2107.9,2105.9,10.82291016]
[1770437563640,10.82161256,2107.9,2106.4,11.06044016]
[1770437563847,10.82161256,2107.9,2106.5,0.23751]
[1770437564045,10.82161256,2107.9,2106.5,11.06042016]
[1770437564446,10.82698192,2107.9,2106.5,11.06612076]
[1770437565643,10.82698192,2107.9,2106.5,0.2432106]
[1770437568845,10.82698192,2107.9,2106.5,0.0057006]
[1770437569051,11.06435192,2107.9,2105.9,10.82291016]
[1770437569247,10.82161256,2107.7,2105.8,0.23759]
[1770437570155,10.82161256,2107.7,2105.9,0.23758]
[1770437572551,10.82161256,2107.7,2106.1,10.82291016]
[1770437572853,10.82161256,2107.7,2106.6,0.2375]
[1770437573454,10.82161256,2107.7,2106.2,11.06045016]
[1770437573655,10.82161256,2107.7,2106.3,0.23754]
[1770437574153,10.82161256,2107.7,2106.3,11.06045016]
[1770437574957,10.82161256,2107.7,2106.5,10.82291016]
[1770437575150,10.82161256,2107.7,2106.5,11.06042016]
[1770437575750,10.82161256,2107.7,2106.2,10.82291016]
[1770437575953,10.82161256,2107.7,2106.0,0.23757]
[1770437576247,11.05900256,2107.7,2106.0,0.23757]
[1770437576455,11.05900256,2107.7,2106.1,0.23756]
[1770437576652,11.05900256,2107.7,2106.1,11.06047016]
[1770437576957,10.82161256,2107.5,2106.1,0.23756]
[1770437577856,10.82161256,2107.3,2105.8,0.24311586]
[1770437578055,11.05904256,2107.3,2105.8,0.24311586]
[1770437578552,10.82161256,2107.1,2105.8,0.00552586]
[1770437578756,10.82161256,2106.9,2105.3,0.23765]
[1770437579052,10.82161256,2106.9,2105.4,0.00552586]
[1770437579453,10.82161256,2106.9,2105.6,10.82291016]
[1770437579750,10.82161256,2106.9,2105.6,0.24244478]
[1770437580346,10.82161256,2106.9,2105.7,0.2376]
[1770437580545,10.82161256,2106.9,2105.9,0.23758]
[1770437580755,10.82161256,2106.9,2105.9,11.06049016]
[1770437580956,10.82161256,2106.9,2106.0,0.23757]
[1770437581348,10.82161256,2106.9,2106.2,0.23755]
[1770437582355,0.23749,2106.8,2105.6,0.00482478]
[1770437582555,11.05913256,2106.5,2104.9,11.06060016]
[1770437582756,10.82161256,2106.3,2104.6,10.82291016]
[1770437583262,10.82161256,2106.3,2104.4,0.23775]
[1770437583461,10.82161256,2105.8,2104.4,0.23775]
[1770437583650,10.82512717,2105.8,2104.4,0.24127568]
[1770437585862,10.82512717,2105.8,2105.1,10.89253408]
[1770437586056,10.82512717,2105.8,2105.1,0.23767]
[1770437586863,10.82512717,2105.8,2104.7,10.65486408]
[1770437587161,10.82512717,2105.8,2104.5,0.23774]
[1770437587162,10.82512717,2105.8,2104.5,10.89260408]
[1770437587757,10.65923315,2105.6,2104.4,0.00352568]
[1770437588554,10.65923315,2105.6,2104.4,11.15829675]
[1770437588756,10.65923315,2105.6,2104.4,0.00352568]
[1770437588966,10.89686315,2105.6,2103.9,0.23781]
[1770437589165,10.89686315,2105.6,2103.9,11.39258107]
[1770437589862,10.67514511,2105.2,2103.9,0.24185914]
[1770437590264,10.67514511,2105.2,2103.9,0.00404914]
[1770437590464,10.91281511,2105.2,2103.9,0.00404914]
[1770437590764,10.67514511,2105.0,2103.5,0.23786]
[1770437590964,10.91285511,2104.8,2103.0,11.39268107]
[1770437591262,10.67514511,2104.5,2103.2,11.39266107]
[1770437591864,10.67514511,2104.5,2103.4,11.15477107]
[1770437592462,10.67514511,2105.4,2103.9,11.16029693]
[1770437592670,10.67514511,2105.4,2104.0,11.39257107]
[1770437592859,10.67514511,2105.4,2104.1,11.15477107]
[1770437593060,10.67514511,2105.4,2104.2,11.39254107]
[1770437593358,10.67514511,2105.4,2104.3,11.39253107]
[1770437593664,10.67514511,2105.4,2104.0,0.2378]
[1770437593870,10.67514511,2105.4,2104.0,11.39257107]
[1770437594371,10.67514511,2105.4,2104.6,11.15477107]
[1770437594564,10.67514511,2105.4,2104.5,0.23774]
[1770437594966,10.67514511,2105.4,2104.3,11.15477107]
[1770437595166,10.67514511,2105.4,2104.6,11.39250107]
[1770437595367,10.67514511,2105.4,2104.6,0.23773]
[1770437596373,10.67514511,2105.4,2104.6,11.39250107]
[1770437599769,10.67514511,2105.4,2104.7,11.39248107]
[1770437599973,10.67514511,2105.7,2104.7,0.23950445]
[1770437600379,10.67514511,2105.7,2104.7,0.00179445]
[1770437600674,10.67514511,2105.7,2103.8,5.47656814]
[1770437600675,10.67514511,2105.4,2103.8,0.23782]
[1770437600981,10.67514511,2105.4,2104.3,0.23776]
[1770437601182,10.67514511,2105.4,2104.0,11.15477107]
[1770437601379,10.67514511,2105.4,2103.8,11.39259107]
[1770437601576,10.67514511,2105.4,2103.8,0.23782]
[1770437601771,10.67514511,2105.1,2103.8,0.23782]
[1770437602381,10.67514511,2104.9,2103.2,11.39265107]
[1770437602583,10.67514511,2104.9,2103.3,11.39264107]
[1770437603080,10.67514511,2104.9,2103.3,0.23787]
[1770437603482,10.67514511,2104.9,2103.4,0.23786]
[1770437603682,10.67514511,2104.9,2103.4,11.39263107]
[1770437603982,10.67514511,2104.9,2103.5,0.23785]
[1770437604380,0.23773,2104.7,2103.1,11.15477107]
[1770437604588,10.67514511,2104.6,2102.9,11.39269107]
[1770437604987,10.67514511,2104.6,2102.9,11.15477107]
[1770437605291,10.67514511,2104.6,2103.5,11.39262107]
[1770437605787,10.67514511,2104.6,2103.5,0.23785]
[1770437605989,10.67514511,2104.6,2103.5,11.39262107]
[1770437606683,10.67514511,2104.6,2103.8,11.15477107]
[1770437606888,10.67514511,2104.6,2103.7,0.23783]
[1770437607084,10.67514511,2104.6,2103.5,11.15477107]
[1770437607486,10.67514511,2104.6,2103.9,0.00552586]
[1770437607885,10.67514511,2104.6,2103.6,11.39261107]
[1770437608388,10.67514511,2104.6,2103.6,0.23784]
[1770437609384,10.67514511,2104.6,2103.3,11.15477107]
[1770437609584,10.67514511,2104.6,2103.4,11.39263107]
[1770437611092,10.67514511,2104.6,2103.2,11.15477107]
[1770437611891,10.67514511,2104.6,2103.0,13.89168013]
[1770437612191,10.67514511,2104.6,2103.1,5.34710123]
[1770437612386,10.67514511,2104.6,2103.0,13.89168013]
[1770437612588,10.91288511,2104.6,2103.1,5.34710452]
[1770437612792,10.91288511,2104.6,2103.0,13.89168013]
[1770437613303,10.91288511,2104.6,2103.2,11.15477107]
[1770437614297,10.67514511,2104.6,2103.2,11.39266107]
[1770437615391,10.67514511,2104.6,2103.4,11.15477107]
[1770437616191,10.67514511,2104.6,2103.3,2.73690906]
[1770437616192,10.67514511,2104.6,2103.7,10.9416125]
[1770437616390,11.5656178,2105.2,2103.7,11.1794425]
[1770437616587,11.5656178,2105.0,2103.7,11.1794425]
[1770437616785,11.5656178,2105.0,2103.7,10.9416125]
[1770437616989,0.2377,2104.9,2103.7,10.9416125]
[1770437617292,11.5656178,2104.8,2103.7,10.9416125]
[1770437617895,11.5656178,2104.8,2103.6,11.1794525]
[1770437618391,11.5656178,2104.8,2103.7,11.1794425]
[1770437619690,11.5656178,2104.8,2103.8,10.9416125]
[1770437619991,11.5656178,2105.0,2103.8,11.1794325]
[1770437620790,11.5656178,2105.0,2103.9,10.9416125]
[1770437621385,11.5656178,2105.7,2104.2,10.9416125]
[1770437621591,11.5656178,2105.7,2104.7,10.9416125]
[1770437621793,11.5656178,2105.7,2104.9,10.9416125]
[1770437622794,11.56913241,2105.8,2105.1,10.9416125]
[1770437623097,11.5656178,2106.1,2105.1,10.9416125]
[1770437623398,11.5656178,2106.1,2105.0,0.23768]
[1770437623399,11.5656178,2106.1,2105.3,10.9416125]
[1770437623891,11.5656178,2106.1,2105.0,2.73690906]
[1770437624092,11.56942388,2106.1,2105.0,0.00351461]
[1770437624293,11.5656178,2105.9,2105.0,0.00351461]
[1770437624894,11.5656178,2105.7,2104.4,10.9416125]
[1770437625800,11.5656178,2105.7,2104.3,0.23776]
[1770437626100,11.5656178,2105.7,2104.2,10.9416125]
[1770437626693,11.5656178,2105.5,2104.0,13.67852156]
[1770437626892,11.5656178,2105.5,2104.1,10.9416125]
[1770437627095,0.00380608,2106.1,2104.3,2.73690906]
[1770437627293,11.5656178,2106.3,2105.1,10.9416125]
[1770437627492,11.5656178,2106.3,2105.2,10.9416125]
[1770437628199,11.57077617,2106.3,2105.2,0.00380608]
[1770437628795,11.80832617,2106.3,2105.2,0.00380608]
[1770437630090,11.5656178,2106.1,2105.2,0.00380608]
[1770437630292,11.8031878,2106.1,2105.2,0.00380608]
[1770437630499,11.8031878,2106.1,2104.7,10.9416125]
[1770437631000,11.5656178,2107.3,2105.5,10.9416125]
[1770437631293,11.5656178,2106.9,2105.8,11.1792025]
[1770437631804,0.00515837,2106.8,2106.0,10.9416125]
[1770437632102,11.5656178,2107.2,2106.0,10.94659603]
[1770437632789,11.5656178,2107.9,2106.2,10.9416125]
[1770437632992,11.56928631,2107.9,2106.2,10.9416125]
[1770437633390,11.56928631,2107.9,2106.6,10.9416125]
[1770437635404,11.56928631,2107.9,2106.8,10.9416125]
[1770437637900,11.56928631,2107.9,2107.1,10.9416125]
[1770437638299,11.56928631,2107.9,2106.7,0.23749]
[1770437638500,11.56928631,2107.9,2106.6,10.9416125]
[1770437640104,11.56928631,2107.9,2106.4,10.9416125]
[1770437640305,11.80664631,2107.9,2106.4,10.9416125]
[1770437640810,11.56928631,2107.9,2106.4,11.1791325]
[1770437641911,11.5656178,2107.7,2106.1,10.9416125]
[1770437642804,11.5656178,2107.7,2106.1,11.1791625]
[1770437643005,11.5656178,2107.7,2106.0,0.00498353]
[1770437643006,11.8029978,2107.7,2106.3,10.9416125]
[1770437643212,11.8029978,2107.7,2106.0,10.94659603]
[1770437644407,11.5656178,2107.5,2106.0,0.00498353]
[1770437644608,0.00366851,2107.9,2106.0,0.00498353]
[1770437644609,11.5656178,2107.1,2106.0,0.00498353]
[1770437644817,11.5656178,2106.9,2105.4,11.1792525]
[1770437645715,11.5656178,2106.9,2105.4,10.9416125]
[1770437646009,11.02414974,2107.0,2105.8,11.35682225]
[1770437646215,11.02414974,2107.3,2106.2,11.35682225]
[1770437646413,11.02414974,2107.7,2106.4,11.35682225]
[1770437646805,11.02414974,2107.7,2106.6,11.35682225]
[1770437649705,11.02414974,2107.7,2106.6,11.59432225]
[1770437650108,11.02414974,2107.7,2106.3,11.69984701]
[1770437650308,11.5896006,2107.5,2106.0,11.69984701]
[1770437650516,11.5896006,2107.5,2105.7,11.69984701]
[1770437650811,11.5896006,2107.8,2106.3,0.23754]
[1770437651017,11.5896006,2107.8,2106.4,11.69984701]
[1770437651312,11.5896006,2107.8,2106.4,11.93737701]
[1770437651711,11.5896006,2107.8,2106.7,11.69984701]
[1770437652017,0.00366851,2107.9,2106.7,11.69984701]
[1770437652209,0.00366851,2107.9,2107.1,11.69984701]
[1770437652517,0.00366851,2107.9,2107.1,11.70474886]
[1770437653111,11.59326911,2107.9,2107.1,11.70474886]
[1770437653513,11.59326911,2107.9,2107.1,0.00490185]
[1770437654615,0.00366851,2107.9,2107.1,11.70474886]
[1770437654916,11.59326911,2107.9,2107.1,11.70474886]
[1770437655116,11.59326911,2107.9,2107.1,0.00490185]
[1770437657515,11.59326911,2107.9,2107.1,11.70474886]
[1770437660121,11.59326911,2107.9,2107.1,0.00490185]
[1770437661323,11.59326911,2107.9,2107.1,11.70474886]
[1770437662819,11.59326911,2107.9,2107.1,14.44165792]
[1770437663721,0.00366851,2107.9,2107.3,11.69984701]
[1770437663920,10.65245118,2108.1,2107.3,11.69984701]
[1770437664724,11.5896006,2108.7,2107.3,11.69984701]
[1770437664916,11.59426347,2108.7,2107.3,14.43675607]
[1770437665324,11.59426347,2108.7,2107.3,11.69984701]
[1770437665520,11.59426347,2108.7,2107.3,11.93726701]
[1770437665725,11.59426347,2108.7,2107.5,2.73690906]
[1770437665914,11.5896006,2108.5,2107.3,2.73690906]
[1770437666116,11.5896006,2108.5,2107.1,4.11026545]
[1770437666117,11.8268906,2108.5,2107.1,2.74181091]
[1770437666322,11.5896006,2108.3,2107.1,0.00490185]
[1770437666524,11.5896006,2108.3,2107.1,11.70474886]
[1770437666729,11.8269206,2108.3,2107.1,11.70474886]
[1770437667224,11.8269206,2108.3,2107.1,0.00490185]
[1770437667420,11.5896006,2108.1,2107.1,0.00490185]
[1770437668827,11.5896006,2108.1,2106.6,14.43675607]
[1770437669028,11.5896006,2108.1,2106.6,2.73690906]
[1770437669431,11.5896006,2108.1,2106.5,14.43675607]
[1770437669727,11.5896006,2108.1,2106.6,5.16836528]
[1770437669924,11.5896006,2107.9,2106.6,2.73690906]
[1770437670118,11.5896006,2107.9,2106.6,14.43675607]
[1770437670524,11.5896006,2107.9,2106.6,11.69984701]
[1770437671024,11.5896006,2107.9,2106.8,11.69984701]
[1770437671223,11.5896006,2107.9,2106.8,14.43675607]
[1770437672029,11.5896006,2107.9,2106.6,2.73690906]
[1770437672225,11.8269606,2107.9,2106.6,2.73690906]
[1770437672426,11.5896006,2107.9,2106.6,14.43675607]
[1770437673227,11.5896006,2107.9,2106.6,11.69984701]
[1770437674533,11.5896006,2107.7,2106.6,11.69984701]
[1770437675525,11.5896006,2107.7,2106.5,11.70351552]
[1770437676224,11.8269906,2107.7,2106.5,0.00366851]
[1770437676430,11.8269906,2107.7,2106.5,10.71044033]
[1770437676730,11.8269906,2107.7,2106.5,0.00366851]
[1770437676924,11.8269906,2107.7,2106.5,10.71044033]
[1770437680535,11.8269906,2107.7,2106.5,0.00366851]
[1770437682936,11.20478152,2107.5,2106.5,0.00366851]
[1770437683541,11.44219152,2107.5,2106.5,0.00366851]
[1770437684948,11.44219152,2107.5,2106.0,10.70677182]
[1770437685441,11.44219152,2107.5,2106.1,10.70677182]
[1770437685847,11.20478152,2107.5,2106.2,0.23755]
[1770437686147,11.20478152,2107.5,2106.3,10.70677182]
[1770437686444,4.76166287,2108.7,2106.5,10.70677182]
[1770437686445,0.00466287,2108.7,2106.5,10.70677182]
[1770437686643,0.00466287,2108.7,2107.5,13.44368088]
[1770437686837,4.757,2110.2,2108.4,2.97420906]
[1770437686838,11.20478152,2110.2,2108.4,2.97420906]
[1770437687141,11.20478152,2109.8,2108.5,10.70677182]
[1770437687343,11.20478152,2109.4,2108.0,10.70677182]
[1770437687544,11.20478152,2109.2,2108.0,10.70677182]
[1770437687741,11.20879726,2109.2,2108.0,10.71143469]
[1770437688149,11.20478152,2109.0,2108.0,10.71143469]
[1770437688646,10.72066152,2108.9,2108.0,10.71143469]
[1770437688846,11.20478152,2108.8,2108.0,10.71143469]
[1770437689248,11.20478152,2109.1,2108.0,10.71143469]
[1770437689842,10.72066152,2109.0,2108.0,10.71143469]
[1770437690043,21.92544304,2109.0,2108.0,10.71143469]
[1770437691143,11.20478152,2108.9,2108.0,10.71143469]
[1770437691543,10.72066152,2108.8,2108.0,10.71143469]
[1770437691842,11.20478152,2108.7,2108.0,0.00466287]
[1770437692349,21.92544304,2108.6,2108.0,0.00466287]
[1770437692551,11.20478152,2108.5,2108.0,0.00466287]
[1770437693047,11.20478152,2108.3,2108.0,0.00466287]
[1770437693343,11.44203152,2108.9,2107.3,10.70677182]
[1770437693549,11.20478152,2108.1,2107.3,10.70677182]
[1770437693743,11.20478152,2108.7,2107.3,10.70677182]
[1770437694950,11.20478152,2108.3,2107.0,10.70677182]
[1770437695447,11.20478152,2107.1,2105.7,2.74393284]
[1770437695748,11.21001885,2107.1,2105.5,10.70677182]
[1770437695951,11.20478152,2106.9,2105.5,10.70677182]
[1770437696445,11.20478152,2106.7,2105.5,10.70677182]
[1770437697152,0.00523733,2107.1,2105.5,10.70677182]
[1770437697153,11.20478152,2106.5,2105.5,10.70677182]
[1770437697348,11.20478152,2106.5,2105.2,10.70677182]
[1770437697550,11.20478152,2106.3,2105.2,10.70677182]
[1770437698051,10.72066152,2106.2,2105.5,10.70677182]
[1770437698346,11.20478152,2106.7,2105.7,10.70677182]
[1770437698747,11.20478152,2106.5,2105.6,2.95392082]
[1770437699054,11.20478152,2106.5,2104.9,10.70677182]
[1770437699351,11.20478152,2106.3,2104.9,10.70677182]
[1770437699952,11.20478152,2106.1,2104.9,10.70677182]
[1770437700246,11.20478152,2106.1,2104.4,2.15877182]
[1770437700446,11.20478152,2106.1,2104.1,2.74393284]
[1770437700447,11.20478152,2105.5,2104.1,10.70677182]
[1770437700649,11.20478152,2105.5,2103.8,10.70677182]
[1770437700650,11.20478152,2105.3,2103.8,10.70677182]
[1770437700852,11.44243152,2105.3,2103.8,10.70677182]
[1770437701147,11.20478152,2105.1,2103.5,10.70677182]
[1770437701543,11.20478152,2104.9,2103.5,10.70677182]
[1770437702051,11.20478152,2104.7,2103.2,10.70677182]
[1770437702447,10.72066152,2104.6,2103.2,10.70677182]
[1770437702746,11.20478152,2104.5,2103.2,10.70677182]
[1770437703149,11.20478152,2105.4,2103.9,2.95392082]
[1770437703349,11.20478152,2105.0,2104.0,10.70677182]
[1770437703748,10.72066152,2104.9,2104.0,10.70677182]
[1770437703947,11.20478152,2105.2,2104.0,10.70677182]
[1770437704348,11.21057637,2105.5,2104.4,10.70677182]
[1770437704554,21.92544304,2105.4,2104.4,10.70677182]
[1770437704748,11.20478152,2106.2,2104.8,10.70677182]
[1770437704951,11.20478152,2106.0,2104.4,10.70677182]
[1770437705751,11.21014131,2106.0,2104.4,10.71162393]
[1770437707444,11.21014131,2106.0,2104.7,2.95392082]
[1770437707645,11.21014131,2106.0,2104.8,11.45675716]
[1770437707851,11.21014131,2106.0,2104.5,11.45675716]
[1770437708052,11.21014131,2106.0,2104.4,0.00485211]
[1770437708247,11.21014131,2106.0,2104.4,11.46160927]
[1770437709451,10.86448816,2105.8,2104.4,11.46160927]
[1770437710448,10.86448816,2105.8,2104.4,0.00485211]
[1770437710849,11.10208816,2105.8,2104.4,0.00485211]
[1770437711651,10.86448816,2105.6,2104.4,0.00485211]
[1770437711849,0.23768,2105.1,2103.6,14.48748526]
[1770437712050,10.86448816,2104.8,2103.0,11.53356444]
[1770437712354,11.10219816,2104.8,2103.0,11.53356444]
[1770437712554,10.86448816,2104.6,2103.0,11.53356444]